[Event "41st Zalakaros Festival 2022"]
[Site "Zalakaros"]
[Date "2022.06.07"]
[Round "3.8"]
[White "Haselbach, David"]
[Black "Ianov, Viktor"]
[Result "1-0"]
[ECO "A36"]
[WhiteElo "2114"]
[BlackElo "2279"]
[Annotator "TA"]
[PlyCount "83"]
[EventDate "2022.06.05"]
[EventType "swiss"]
[EventCountry "HUN"]
[SourceTitle "playchess.com"]
[Source "ChessBase"]
[SourceQuality "1"]
[TimeControl "40/5400+30:1800+30"]

{[%evp 10,83,-7,-12,12,7,17,8,19,13,22,33,24,26,35,0,33,6,22,15,47,-6,45,47,64,26,38,57,67,25,92,0,111,-4,182,183,162,172,149,162,143,168,163,102,93,112,105,59,96,47,41,45,50,57,55,47,45,52,42,15,33,20,1135,1093,2499,2149,29985,29986,29985,29984,29990,29991,29991,29992,29992,29986]} 1. c4 {[%emt 0:00:34]} c5 {[%emt 0:00:39]} 2. Nc3 {[%emt 0:00:06]} g6 {[%emt 0:00:09]} 3. g3 {[%emt 0:00:04]} Bg7 {[%emt 0:00:08]} 4. Bg2 {[%emt 0:00:11]} Nc6 {[%emt 0:00:06]} 5. e4 {[%emt 0:00:07]} d6 {[%emt 0:00:35]} 6. Nge2 {[%emt 0:00:08]} Qd7 {[%emt 0:00:34] A36: Symmetrical English vs ...g6: 4 Bg2 Bg7.} 7. d3 {[%emt 0:04:25]} b6 {[%emt 0:01:28]} 8. Be3 {[%emt 0:01:06]} Bb7 {[%emt 0:00:10] The position is equal.} 9. O-O {[%emt 0:06:49]} Nf6 {[%emt 0:01:14]} 10. h3 {[%emt 0:00:09]} O-O {[%emt 0:00:11]} 11. Qd2 {[%emt 0:01:16]} Rac8 {[%emt 0:00:11] [#]} 12. Rab1 $146 {[%emt 0:04:53]} ({Predecessor:} 12. f4 e6 13. g4 d5 14. exd5 exd5 15. Nxd5 Nxd5 16. Bxd5 Rce8 17. f5 Qe7 18. f6 Qxe3+ 19. Qxe3 Rxe3 20. fxg7 Kxg7 {½-½ (24) Smotavicius,G (2191)-Balabaev,F (2080) ICCF email 2006}) 12... Rfd8 {[%emt 0:01:30]} 13. a3 {[%emt 0:07:32]} Ne8 {[%emt 0:00:55]} 14. b4 {[%emt 0:00:34][%cal Bb2b4,Bb4b5][%mdl 32]} Nc7 {[%emt 0:00:28]} 15. f4 {[%emt 0:05:50]} (15. Bh6 $14) 15... Ne6 {[%emt 0:01:26]} ({Black should play} 15... Nd4 $11) 16. b5 $14 {[%emt 0:06:56]} Ncd4 {[%emt 0:00:47]} 17. g4 {[%emt 0:03:26]} (17. f5 $5 {[%cal Rf5e6]} Nc7 18. Bh6 $14) 17... f5 {[%emt 0:02:12]} 18. Ng3 {[%emt 0:01:25][%cal Rg4f5]} Rf8 {[%emt 0:00:25]} 19. Kh2 {[%emt 0:21:17]} Rf7 {[%emt 0:00:32]} (19... fxg4 $11 {keeps the balance.} 20. hxg4 Nc7) 20. Nd5 {[%emt 0:00:36]} (20. exf5 $16 gxf5 21. Bxb7 Qxb7 22. Nd5) 20... Rcf8 {[%emt 0:02:15]} (20... fxg4 $11 21. f5 (21. hxg4 Nc7 $11) 21... Nf8) 21. a4 {[%emt 0:01:24]} (21. exf5 $16 gxf5 22. g5) 21... Nd8 {[%emt 0:00:51]} (21... fxg4 $11 {and Black has nothing to worry.} 22. hxg4 Nc7) 22. Bxd4 {[%emt 0:00:36]} Bxd4 {[%emt 0:00:54]} 23. exf5 {[%emt 0:02:47]} e6 {[%emt 0:03:10]} 24. fxe6 {[%emt 0:02:30]} Nxe6 {[%emt 0:00:10]} 25. Rbe1 {[%emt 0:03:06]} Kh8 {[%emt 0:00:32] [#]} 26. f5 {[%emt 0:00:58]} (26. a5 $1 $18 {[%cal Ra5b6]}) 26... gxf5 $16 {[%emt 0:00:18]} 27. gxf5 {[%emt 0:07:53]} Ng7 {[%emt 0:00:58][%cal Rg7f5]} 28. f6 {[%emt 0:00:11]} Bxf6 {[%emt 0:00:24] [#]} 29. Nxf6 {[%emt 0:02:36] 0x0.00166b27727edp-1022s more active pieces.} (29. Qh6 $1 $16 {[%cal Rd5f6]} Bxd5 30. cxd5 (30. Bxd5 Be5 $16)) 29... Rxf6 $14 {[%emt 0:00:10]} 30. Rxf6 {[%emt 0:00:14]} Rxf6 {[%emt 0:00:09]} 31. Bxb7 {[%emt 0:00:27]} Qxb7 {[%emt 0:00:09]} 32. Ne4 {[%emt 0:00:13][%cal Bg3e4,Be4g5,Bg5e6,Be6f4,Bf4d5][%mdl 32]} Rg6 {[%emt 0:00:52]} 33. Qf4 $40 {[%emt 0:00:21][%cal Rf4f8][%mdl 128] White is up to no good.} Nh5 $1 {[%emt 0:05:00]} 34. Qf5 {[%emt 0:08:35]} Nf6 {[%emt 0:00:44]} 35. Ng5 {[%emt 0:02:26][%cal Oe1e8] Hoping for Re8+!} d5 $2 {[%emt 0:03:29][%mdl 8192] [#]} (35... Qg7 $11 36. Rg1 Qe7) 36. Re8+ $3 $18 {[%emt 0:01:26][%mdl 512]} Kg7 {[%emt 0:03:42]} (36... Nxe8 37. Qf8+) 37. Ne6+ {[%emt 0:00:12]} Kh6 {[%emt 0:00:09]} 38. Qf4+ {[%emt 0:00:31] White mates.} Kh5 {[%emt 0:00:10]} 39. Qf3+ {[%emt 0:00:12]} Kh6 {[%emt 0:01:23]} 40. Qe3+ {[%emt 0:00:00]} Kh5 {[%emt 0:00:00]} 41. Nf4+ {[%emt 0:00:31]} Kh6 {[%emt 0:00:54]} 42. Nxd5+ {[%emt 0:04:56] Weighted Error Value: White=0.20 (precise) /Black=0.47} 1-0

[Event "41st Zalakaros Festival 2022"]
[Site "Zalakaros"]
[Date "2022.06.07"]
[Round "3.9"]
[White "Gyorkos, Lajos"]
[Black "Trajber, Daniel"]
[Result "1/2-1/2"]
[ECO "E66"]
[WhiteElo "2254"]
[BlackElo "2090"]
[Annotator "TA"]
[PlyCount "64"]
[EventDate "2022.06.05"]
[EventType "swiss"]
[EventCountry "HUN"]
[SourceTitle "playchess.com"]
[Source "ChessBase"]
[SourceQuality "1"]
[TimeControl "40/5400+30:1800+30"]

{[%evp 24,64,27,25,81,76,76,56,81,81,104,97,112,104,116,89,175,184,178,133,137,121,95,45,90,0,0,-131,-135,-116,-111,-132,-93,-93,-97,-97,-107,-119,0,-95,0,-104,0]} 1. Nf3 {[%emt 0:00:35]} Nf6 {[%emt 0:01:00]} 2. g3 {[%emt 0:00:12]} g6 {[%emt 0:00:42]} 3. Bg2 {[%emt 0:00:05]} Bg7 {[%emt 0:00:46]} 4. O-O {[%emt 0:00:09]} O-O {[%emt 0:00:47]} 5. d4 {[%emt 0:00:10]} d6 {[%emt 0:01:50]} 6. c4 {[%emt 0:00:10]} c5 {[%emt 0:02:22]} 7. Nc3 {[%emt 0:00:13]} Nc6 {[%emt 0:02:54]} 8. d5 {[%emt 0:02:23]} Na5 {[%emt 0:01:34]} 9. Nd2 {[%emt 0:00:16]} a6 {[%emt 0:06:39]} 10. Qc2 {[%emt 0:00:16]} Rb8 {[%emt 0:02:18]} 11. b3 {[%emt 0:00:17]} b5 {[%emt 0:01:23]} 12. Bb2 {[%emt 0:00:14]} bxc4 {[%emt 0:04:39]} 13. bxc4 {[%emt 0:00:08]} Nd7 {[%emt 0:01:58] E66: King's Indian: Fianchetto: 6...c5 7 0-0 Nc6 8 d5.} (13... Bh6 $11 14. f4 e5) 14. Rab1 $16 {[%emt 0:02:22]} Nb6 {[%emt 0:04:58]} 15. Nd1 {[%emt 0:00:27] [#] And now Bxg7 would win.} Bxb2 {[%emt 0:04:54] White is slightly better.} 16. Nxb2 {[%emt 0:00:13] [#]} Bg4 $146 {[%emt 0:07:56]} ({Predecessor:} 16... Bd7 17. e4 Qc8 18. Qc3 Qb7 19. f4 f5 20. e5 e6 21. Rfe1 Qc8 22. Nd3 Qc7 23. dxe6 Bxe6 24. exd6 Qxd6 25. Rxb6 Qxb6 26. Rxe6 Qd8 27. Bd5 {1-0 (27) Nekrasova,E (2107)-Ibraheem,D Mallorca 2004}) 17. e4 {[%emt 0:01:22]} e5 {[%emt 0:01:51]} 18. f4 {[%emt 0:00:55]} exf4 {[%emt 0:08:01]} 19. gxf4 {[%emt 0:00:34]} Qh4 {[%emt 0:03:03]} (19... Qf6 $16 {keeps fighting.}) 20. Qc3 $18 {[%emt 0:00:34]} Nb7 {[%emt 0:01:32]} 21. e5 {[%emt 0:02:44]} Bf5 {[%emt 0:05:19]} 22. Rbe1 {[%emt 0:00:26]} Rfe8 {[%emt 0:01:30]} 23. Nb3 {[%emt 0:03:04]} (23. Nd3 $16) 23... Nd7 {[%emt 0:02:17] [#]} 24. Re3 {[%emt 0:03:56]} (24. Nd1 $1 $16) 24... Re7 $11 {[%emt 0:05:12]} 25. exd6 {[%emt 0:03:24]} (25. Bh3 $11 Bxh3 26. Rxh3 Qg4+ 27. Rg3) 25... Rxe3 $17 {[%emt 0:01:09]} ({And not} 25... Nxd6 26. Rxe7 Qxe7 27. Rc1 $15) 26. Qxe3 {[%emt 0:00:02]} Nxd6 {[%emt 0:01:06]} 27. Qf2 {[%emt 0:01:26]} Qxf2+ {[%emt 0:08:17]} 28. Rxf2 {[%emt 0:00:08]} Bb1 {[%emt 0:01:11]} 29. Nc1 {[%emt 0:00:32]} Re8 {[%emt 0:01:32]} 30. Rf1 {[%emt 0:00:53]} Rb8 {[%emt 0:02:25]} 31. Rf2 Re8 32. Rf1 $1 Rb8 {Weighted Error Value: White=0.24 (precise) /Black=0.28 (precise)} ({Black should play} 32... a5 $17 33. a3 Rb8) 1/2-1/2

[Event "41st Zalakaros Festival 2022"]
[Site "Zalakaros"]
[Date "2022.06.07"]
[Round "3.10"]
[White "Hrbolka, Ladislav"]
[Black "Vegh, Endre"]
[Result "1/2-1/2"]
[ECO "A04"]
[WhiteElo "2193"]
[BlackElo "2225"]
[Annotator "TA"]
[PlyCount "45"]
[EventDate "2022.06.05"]
[EventType "swiss"]
[EventCountry "HUN"]
[SourceTitle "playchess.com"]
[Source "ChessBase"]
[SourceQuality "1"]
[TimeControl "40/5400+30:1800+30"]

{[%evp 12,45,50,38,42,35,75,11,6,0,0,-12,-13,-9,-2,-8,-17,-15,19,29,26,15,90,27,89,47,56,-315,34,-30,82,0,91,0,99,98]} 1. Nf3 {[%emt 0:01:18]} g6 {[%emt 0:01:01]} 2. g3 {[%emt 0:00:06]} Bg7 {[%emt 0:00:44]} 3. Bg2 {[%emt 0:00:21]} d6 {[%emt 0:02:30]} 4. d4 {[%emt 0:00:39]} Nd7 {[%emt 0:04:32]} 5. O-O {[%emt 0:01:59]} e5 {[%emt 0:01:12]} 6. e4 {[%emt 0:04:52]} Ne7 {[%emt 0:01:57]} 7. Nc3 {[%emt 0:06:04]} exd4 {[%emt 0:06:46] A41: 1 d4 d6: Tartakower System and Modern Defence.} 8. Nxd4 {[%emt 0:00:49]} Nc6 {[%emt 0:03:36] [#]} 9. Nce2 $146 {[%emt 0:13:06]} (9. Nxc6 $16 bxc6 10. e5) ({Predecessor:} 9. Nde2 O-O 10. h3 a5 11. Be3 a4 12. b3 axb3 13. cxb3 Nc5 14. Qd2 Bd7 15. Rad1 {1-0 (60) Rashkovsky,N (2517)-Okhotnik,V (2427) Rijeka 2011}) 9... O-O $11 {[%emt 0:01:46] The position is equal.} 10. h3 Re8 {[%emt 0:01:33]} 11. Re1 {[%emt 0:08:51]} Nc5 {[%emt 0:06:31]} 12. Nxc6 bxc6 13. Nd4 {[%emt 0:01:14]} Bd7 {[%emt 0:02:47][%cal Od6d5]} 14. e5 {[%emt 0:08:22]} d5 {[%emt 0:02:29]} 15. Bf4 {[%emt 0:04:57]} Ne6 {[%emt 0:14:39]} 16. Nxe6 {[%emt 0:01:25]} Rxe6 (16... Bxe6 $11 17. h4 Qe7) 17. Qd4 (17. h4 $16) 17... Qe8 (17... g5 $11 18. Bd2 f6) 18. Re3 {White is more active.} Qd8 {[#] Threatens to win with ...g5.} 19. Qd1 $2 {[%mdl 8192]} (19. g4 $14 {stays ahead.}) 19... Re8 $2 (19... g5 $19 20. Bxg5 Qxg5) 20. Re1 ({White should try} 20. g4 $14) 20... Re6 (20... g5 $11 {remains equal.} 21. Be3 Bxe5) 21. Qd4 Qe8 22. Re3 (22. c4 $16) 22... f6 (22... Qd8 $11) 23. Rae1 {Weighted Error Value: White=0.72/Black=0.66} 1/2-1/2

[Event "41st Zalakaros Festival 2022"]
[Site "Zalakaros"]
[Date "2022.06.08"]
[Round "4.1"]
[White "Pranav Vijay"]
[Black "Kantor, Gergely"]
[Result "1/2-1/2"]
[ECO "C84"]
[WhiteElo "2265"]
[BlackElo "2587"]
[Annotator "TA"]
[PlyCount "180"]
[EventDate "2022.06.05"]
[EventType "swiss"]
[EventCountry "HUN"]
[SourceTitle "playchess.com"]
[Source "ChessBase"]
[SourceQuality "1"]
[TimeControl "40/5400+30:1800+30"]

{[%evp 25,180,15,23,18,22,0,23,19,20,33,27,0,2,0,20,-16,0,0,21,21,30,21,21,22,25,17,21,20,24,21,24,31,26,18,33,-8,36,35,109,109,116,109,103,121,119,112,119,118,106,106,107,115,121,29,33,34,92,92,130,82,77,0,46,15,15,12,14,11,11,10,10,27,48,51,50,6,6,1,13,6,19,0,0,0,0,0,0,0,0,0,0,0,0,0,0,0,0,0,0,0,0,0,0,0,0,0,0,0,0,0,0,0,0,0,0,0,0,0,0,0,0,0,0,0,0,0,0,0,0,0,0,0,0,0,0,0,0,0,0,0,0,0,0,0,0,0,0,0,0,0,0,0,0,0,0,0,0]} 1. e4 {[%emt 0:00:38]} e5 {[%emt 0:04:02]} 2. Nf3 {[%emt 0:00:08]} Nc6 {[%emt 0:00:03]} 3. Bb5 {[%emt 0:00:09]} a6 {[%emt 0:00:04]} 4. Ba4 {[%emt 0:00:06]} Nf6 {[%emt 0:00:05]} 5. O-O {[%emt 0:00:08]} Be7 {[%emt 0:00:03]} 6. d3 {[%emt 0:00:09]} b5 {[%emt 0:00:09]} 7. Bb3 {[%emt 0:00:07]} d6 {[%emt 0:00:06]} 8. c3 {[%emt 0:00:14]} O-O {[%emt 0:01:32]} 9. h3 {[%emt 0:00:06]} Bb7 {[%emt 0:03:53]} 10. Re1 {[%emt 0:00:14]} Na5 {[%emt 0:01:12]} 11. Bc2 {[%emt 0:00:07]} c5 {[%emt 0:00:16]} 12. Nbd2 {[%emt 0:00:07][%cal Bb1d2,Bd2f1,Bf1g3,Bg3f5][%mdl 32]} Re8 {[%emt 0:07:37]} 13. Nf1 {[%emt 0:00:12]} Qc7 {[%emt 0:22:40]} 14. Ng3 {[%emt 0:03:13] C92: Closed Ruy Lopez: 9...Be6, Karpov and Flohr-Zaitsev Variations.} d5 {[%emt 0:02:20]} 15. Nf5 {[%emt 0:10:45]} Rad8 {[%emt 0:09:39] [#] And now ...dxe4 would win.} 16. Qe2 $146 {[%emt 0:13:04] White has an edge.} ({Predecessor:} 16. exd5 Rxd5 17. Nxe7+ Rxe7 18. Qd2 e4 19. Qe2 Rdd7 20. dxe4 Nxe4 21. Qf1 h6 22. Re2 {0-1 (45) Korman,J (1872)-Goebel,K (2230) ICCF email 2011}) 16... Bf8 {[%emt 0:07:34]} 17. Bg5 {[%emt 0:04:57][%cal Bc1g5,Bg5h4,Bh4g3,Bg3f4][%mdl 32] aiming for Bxf6.} Re6 {[%emt 0:03:08]} 18. Rad1 {[%emt 0:09:46]} h6 {[%emt 0:06:52]} 19. Bh4 {[%emt 0:01:27]} Rde8 {[%emt 0:03:28]} 20. Bb1 {[%emt 0:08:55]} Nh5 {[%emt 0:06:09]} 21. Nxe5 Nf4 {[%emt 0:10:54][%mdl 64] [#] Zwischenzug} (21... g6 $5 {[%cal Rc7e5]} 22. d4 dxe4 $11) 22. Qg4 {[%emt 0:13:56][%cal Oh4g3] Bg3! is the strong threat.} Qxe5 {[%emt 0:00:45]} 23. Bg3 {[%emt 0:00:05] Dancing on a razor blade.} h5 {[%emt 0:04:01]} ({Don't play} 23... g5 24. d4 Qc7 25. e5) 24. Qxf4 {[%emt 0:11:33]} Qxf4 {[%emt 0:00:14]} 25. Bxf4 {[%emt 0:00:04] With the idea Bc7.} dxe4 {[%emt 0:00:40]} 26. dxe4 {[%emt 0:01:26]} Bxe4 {[%emt 0:00:50]} 27. Bxe4 {[%emt 0:00:06]} Rxe4 {[%emt 0:00:10]} 28. Rxe4 {[%emt 0:00:04]} Rxe4 {[%emt 0:00:12]} 29. g3 {[%emt 0:00:05]} Nc6 {[%emt 0:03:22] Prevents Rd8.} 30. Rd7 {[%emt 0:01:07]} Re6 {[%emt 0:00:35]} 31. Rc7 {[%emt 0:02:06]} f6 {[%emt 0:02:37] [#]} (31... g6 $14 32. Nh6+ Bxh6 33. Bxh6 c4) 32. Bd6 $1 $16 {[%emt 0:03:11][%mdl 512] White is more active.} Bxd6 {[%emt 0:00:30]} (32... Re1+ 33. Kg2) 33. Rxc6 {[%emt 0:00:05][%mdl 4096] Endgame KRB-KRN} Re1+ {[%emt 0:00:06]} 34. Kg2 {[%emt 0:00:03]} Bf8 {[%emt 0:00:28]} 35. Rxa6 {[%emt 0:00:20]} Re2 {[%emt 0:00:47] [#]} 36. b3 $1 {[%emt 0:00:11]} Rc2 {[%emt 0:00:46] [#]} 37. Ra5 $1 {[%emt 0:00:07]} Rxc3 {[%emt 0:00:23]} 38. Rxb5 {[%emt 0:00:01] Hoping for Ne3.} c4 {[%emt 0:00:41]} 39. Nh4 {[%emt 0:02:08]} (39. Rb8 $16) 39... cxb3 $11 {[%emt 0:00:31]} 40. axb3 {[%emt 0:00:00]} Kf7 {[%emt 0:00:00]} (40... Rc2 $1 $14) 41. Rb7+ $16 {[%emt 0:02:49]} Kg8 {[%emt 0:04:19]} 42. Ng6 {[%emt 0:02:22]} ({White should try} 42. Nf5) 42... Bd6 {[%emt 0:02:40]} 43. Nh4 {[%emt 0:03:32]} (43. g4 $16) 43... Rc2 {[%emt 0:04:18]} (43... Bf8 $11) 44. b4 {[%emt 0:00:13]} Rb2 $1 {[%emt 0:02:58]} 45. Nf5 {[%emt 0:00:17][%csl LRd6,LRg7]} Bf8 {[%emt 0:00:53]} 46. b5 {[%emt 0:02:09]} g6 {[%emt 0:08:35]} 47. Nh4 {[%emt 0:14:48]} Bc5 {[%emt 0:05:26]} 48. Kf3 {[%emt 0:00:05]} Rxf2+ {[%emt 0:02:48]} 49. Ke4 {[%emt 0:00:01] Threatens to win with Kd5.} Re2+ {[%emt 0:02:47]} 50. Kd3 {[%emt 0:03:05]} Rh2 {[%emt 0:00:32] The position is equal.} 51. Kc4 {[%emt 0:01:57]} Bf2 {[%emt 0:00:06]} 52. Nxg6 {[%emt 0:00:25]} Rxh3 {[%emt 0:00:10]} 53. Kd5 {[%emt 0:00:23]} Rxg3 {[%emt 0:00:22]} 54. Ne7+ {[%emt 0:00:07]} Kf8 {[%emt 0:00:12]} 55. Nf5 {[%emt 0:00:17]} Rg1 {[%emt 0:00:56]} 56. Ke6 {[%emt 0:01:23][%cal Rb7b8]} Re1+ {[%emt 0:00:13]} 57. Kxf6 {[%emt 0:00:35]} Ke8 {[%emt 0:00:15]} 58. b6 {[%emt 0:01:32]} Bxb6 {[%emt 0:01:52]} 59. Rxb6 $11 {[%emt 0:00:51] KRN-KR} Kd7 {[%emt 0:00:07]} 60. Rb7+ {[%emt 0:00:03]} Kc6 {[%emt 0:00:13]} 61. Rh7 {[%emt 0:00:04]} Kd5 {[%emt 0:01:04]} 62. Rxh5 {[%emt 0:00:07]} Re6+ {[%emt 0:00:42]} 63. Kg5 {[%emt 0:00:01]} Re1 {[%emt 0:00:13]} 64. Rh8 {[%emt 0:00:10]} Rg1+ {[%emt 0:00:17]} 65. Kf6 {[%emt 0:00:01]} Rf1 {[%emt 0:00:18]} 66. Rd8+ {[%emt 0:00:05]} Kc5 {[%emt 0:00:12]} 67. Ke5 {[%emt 0:00:18]} Re1+ {[%emt 0:00:09]} 68. Kf4 {[%emt 0:00:02]} Rf1+ {[%emt 0:00:17]} 69. Ke4 {[%emt 0:00:02]} Re1+ {[%emt 0:00:09]} 70. Ne3 {[%emt 0:00:02]} Kc6 {[%emt 0:00:35]} 71. Rh8 {[%emt 0:00:02]} Ra1 {[%emt 0:00:53]} 72. Rh6+ {[%emt 0:00:04]} Kc5 {[%emt 0:00:16]} 73. Rh5+ {[%emt 0:00:03]} Kc6 {[%emt 0:00:09]} 74. Kd4 {[%emt 0:00:03]} Kd7 {[%emt 0:00:48]} 75. Rh6 {[%emt 0:00:17]} Ke7 {[%emt 0:01:31]} 76. Ke5 {[%emt 0:00:08]} Kd7 {[%emt 0:00:53]} 77. Rd6+ {[%emt 0:00:02]} Kc8 {[%emt 0:00:28]} 78. Rd3 {[%emt 0:00:53]} Kb7 {[%emt 0:00:34]} 79. Nd5 {[%emt 0:00:23]} Kc6 {[%emt 0:00:23]} 80. Rc3+ {[%emt 0:00:01]} Kb5 {[%emt 0:00:20]} 81. Rc8 {[%emt 0:00:02]} Rh1 {[%emt 0:00:41]} 82. Nc3+ {[%emt 0:00:28]} Kb6 {[%emt 0:00:19]} 83. Ne4 {[%emt 0:00:45]} Re1 {[%emt 0:00:51]} 84. Rc2 {[%emt 0:00:05]} Rh1 {[%emt 0:00:34]} 85. Nf6 {[%emt 0:00:13]} Kb5 {[%emt 0:00:22]} 86. Nd7 {[%emt 0:00:33]} Re1+ {[%emt 0:00:25]} 87. Kd6 {[%emt 0:00:02]} Rd1+ {[%emt 0:00:07]} 88. Kc7 {[%emt 0:00:02]} Rh1 {[%emt 0:00:31]} 89. Nf6 {[%emt 0:00:19]} Rh4 {[%emt 0:00:51]} 90. Nd5 {[%emt 0:00:25]} Rc4+ {[%emt 0:00:08] Weighted Error Value: White=0.11 (very precise) /Black=0.08 (flawless)} 1/2-1/2

[Event "41st Zalakaros Festival 2022"]
[Site "Zalakaros"]
[Date "2022.06.08"]
[Round "4.2"]
[White "Peczely, Sebastian Zsombor"]
[Black "Csonka, Balazs"]
[Result "1/2-1/2"]
[ECO "B23"]
[WhiteElo "2313"]
[BlackElo "2498"]
[Annotator "TA"]
[PlyCount "29"]
[EventDate "2022.06.05"]
[EventType "swiss"]
[EventCountry "HUN"]
[SourceTitle "playchess.com"]
[Source "ChessBase"]
[SourceQuality "1"]
[TimeControl "40/5400+30:1800+30"]

{[%evp 11,29,0,2,-24,-11,-14,-2,-19,0,0,0,0,10,0,8,13,23,4,16,14]} 1. e4 {[%emt 0:06:01]} c5 {[%emt 0:00:39]} 2. Nc3 {[%emt 0:00:08]} g6 {[%emt 0:00:30]} 3. Nge2 {[%emt 0:04:09]} Bg7 {[%emt 0:00:35]} 4. g3 {[%emt 0:00:05]} Nc6 {[%emt 0:00:52]} 5. Bg2 {[%emt 0:00:28]} e6 {[%emt 0:01:17]} 6. O-O {[%emt 0:03:04]} Nge7 {[%emt 0:00:08]} 7. b3 {[%emt 0:04:32] B24: Closed Sicilian: 3 g3 sidelines.} O-O {[%emt 0:06:07]} 8. Bb2 {[%emt 0:00:05]} d5 {[%emt 0:06:59]} 9. exd5 {[%emt 0:00:06]} exd5 {[%emt 0:00:09] [#]} 10. Na4 $146 {[%emt 0:00:11]} ({Predecessor:} 10. d3 d4 11. Nb1 Be6 12. Re1 Bd5 13. Bf1 Qd7 14. Nf4 Rae8 15. Nxd5 Nxd5 16. Nd2 Rxe1 17. Qxe1 {1-0 (74) Proudian,A (2427)-Eswaran,A (2244) Chess.com INT 2020}) 10... Bxb2 {[%emt 0:03:47]} 11. Nxb2 {[%emt 0:00:03]} Bg4 {[%emt 0:03:28]} 12. h3 {[%emt 0:02:25]} Bxe2 {[%emt 0:01:15]} 13. Qxe2 {[%emt 0:00:04]} Re8 {[%emt 0:09:57]} 14. Rfe1 {[%emt 0:03:46]} Qd6 {[%emt 0:04:15]} 15. c3 {[%emt 0:04:55] Not much happened in this game.  Weighted Error Value: White=0.07 (flawless) /Black=0.07 (flawless)} 1/2-1/2

[Event "41st Zalakaros Festival 2022"]
[Site "Zalakaros"]
[Date "2022.06.08"]
[Round "4.3"]
[White "Bodrogi, Bendeguz"]
[Black "Sammed Jaykumar, Shete"]
[Result "0-1"]
[ECO "A00"]
[WhiteElo "2198"]
[BlackElo "2400"]
[Annotator "TA"]
[PlyCount "78"]
[EventDate "2022.06.05"]
[EventType "swiss"]
[EventCountry "HUN"]
[SourceTitle "playchess.com"]
[Source "ChessBase"]
[SourceQuality "1"]
[TimeControl "40/5400+30:1800+30"]

{[%evp 9,78,3,8,0,20,0,0,-19,-25,-72,-57,-71,-68,-75,-79,-80,-87,-82,-79,-91,-72,-91,-82,-127,-127,-129,-127,-135,-135,-177,-168,-170,-177,-147,-152,-149,-189,-218,-223,-222,-220,-227,-213,-228,-223,-210,-187,-254,-254,-265,-165,-177,-181,-188,0,-186,-170,-194,-156,-178,-122,-647,-308,-345,-152,-935,-868,-1134,-1095,-2111,-1757]} 1. g3 {[%emt 0:00:34]} e5 {[%emt 0:00:47]} 2. c4 {[%emt 0:00:09]} c6 {[%emt 0:00:28]} 3. Bg2 {[%emt 0:00:26]} d5 {[%emt 0:00:08]} 4. cxd5 {[%emt 0:00:09]} cxd5 {[%emt 0:00:04]} 5. d4 {[%emt 0:00:10]} e4 {[%emt 0:01:08]} 6. Nc3 {[%emt 0:00:07] A20: English Opening: 1...e5.} Nc6 {[%emt 0:01:23]} 7. Nh3 {[%emt 0:02:15]} h6 {[%emt 0:01:33] was the old line (7...Bb4).} 8. Nf4 {[%emt 0:01:50] The position is equal.} Nf6 {[%emt 0:00:15]} 9. h4 {[%emt 0:01:32]} (9. f3 $11) 9... Bb4 $17 {[%emt 0:03:59]} 10. Bd2 {[%emt 0:12:16]} O-O {[%emt 0:03:24]} 11. e3 {[%emt 0:00:37]} Bg4 {[%emt 0:01:43]} 12. Qb3 {[%emt 0:00:23][%cal Oc3e4]} Bxc3 {[%emt 0:01:24]} 13. Bxc3 {[%emt 0:00:10]} Qd7 {[%emt 0:00:05]} 14. h5 {[%emt 0:06:21] [#]} Rab8 $146 {[%emt 0:01:24]} ({Predecessor:} 14... Rac8 15. Bh3 Bxh3 16. Rxh3 Nd8 17. Rh4 Ne6 18. Qa3 Ng5 19. O-O-O Rc4 20. Kb1 Rfc8 {½-½ (27) Farkas,T (2249)-Gupta,B (2077) Kecskemet 2012}) 15. a4 {[%emt 0:00:16]} Qf5 {[%emt 0:01:00]} 16. Bh3 {[%emt 0:05:06]} Bxh3 {[%emt 0:09:41]} 17. Rxh3 {[%emt 0:00:10]} Rfc8 {[%emt 0:03:34]} 18. Rh1 {[%emt 0:00:36]} Nd8 {[%emt 0:05:11][%cal Bc6d8,Bd8e6,Be6g5][%mdl 32]} 19. g4 {[%emt 0:29:53]} Qxg4 {[%emt 0:04:50]} 20. Nxd5 {[%emt 0:04:11]} Nxd5 {[%emt 0:00:07]} 21. Qxd5 {[%emt 0:00:07]} Ne6 {[%emt 0:00:04]} 22. Qe5 {[%emt 0:11:18]} Ng5 {[%emt 0:00:14] White must now prevent ...Nf3+.} 23. Qg3 {[%emt 0:00:04]} Qd7 {[%emt 0:00:32]} 24. Kf1 {[%emt 0:00:10]} b5 {[%emt 0:00:32]} 25. axb5 {[%emt 0:00:38]} Rxb5 {[%emt 0:00:13] ...Nf3 is the strong threat.} ({Stronger than} 25... Qxb5+ 26. Kg2 $11) 26. Rh4 {[%emt 0:01:21]} Rc6 {[%emt 0:20:36]} 27. Qg4 {[%emt 0:03:55]} Re6 {[%emt 0:03:59]} 28. Qg3 {[%emt 0:06:04]} (28. d5 {might work better.} Rxd5 29. Kg2) 28... Kh7 $19 {[%emt 0:03:04]} 29. Rf4 {[%emt 0:02:41]} f5 {[%emt 0:01:40]} 30. Rh4 {[%emt 0:02:34]} Nf3 {[%emt 0:00:56]} 31. Rf4 {[%emt 0:02:00]} Ng5 {[%emt 0:00:18]} 32. Rh4 $1 {[%emt 0:00:22]} Qf7 {[%emt 0:01:28]} 33. Rh1 {[%emt 0:01:09]} Nf3 {[%emt 0:00:28][%cal Of5f4] Strongly threatening ...f4!} 34. Qf4 {[%emt 0:00:53]} Rc6 {[%emt 0:01:17]} (34... g5 $19 35. Qg3 Nh4) 35. Ra4 $2 {[%emt 0:01:33][%mdl 8192] [#]} (35. Rh3 $17) 35... a6 {[%emt 0:02:45]} (35... Rxc3 $142 $1 {[%mdl 512]} 36. Rxa7 Rc1+ 37. Kg2 Qxa7 38. Rxc1 Qf7) 36. Kg2 {[%emt 0:03:21]} Qd7 {[%emt 0:06:00]} (36... g5 $19 {has better winning chances.} 37. Qg3 Nh4+ 38. Kg1 Rxc3 39. bxc3 Rb1+ 40. Kh2 Nf3+ 41. Kg2 Rxh1 42. Kxh1 Qxh5+ 43. Kg2 Nh4+ 44. Kh1 Nf3+ 45. Kg2 Nh4+ 46. Kh1 Qd1+ 47. Qg1 Qf3+ 48. Kh2 Qh5) 37. Raa1 $2 {[%emt 0:01:25]} (37. Rh3 $17) 37... g5 {[%emt 0:03:00] Black is clearly winning.} 38. hxg6+ {[%emt 0:00:10]} Rxg6+ {[%emt 0:00:08]} 39. Kf1 {[%emt 0:00:09] [#]} Rxb2 $3 {[%emt 0:02:10][%mdl 512] Weighted Error Value: White=0.67/Black=0.29 (precise)} 0-1